bitfinex/quotes_ETHUSD_20241006
["timestamp","ask_amount","ask_price","bid_price","bid_amount"]
[1728243610293,3.26583,2449.6,2449.3,1.71456393]
[1728243610620,6.53175,2449.6,2449.3,1.71456393]
[1728243610785,3.26583,2449.6,2449.3,1.71456393]
[1728243610989,3.0,2449.7,2449.3,1.71456393]
[1728243611188,6.26571,2449.7,2449.3,1.71456393]
[1728243614991,3.26591,2449.6,2449.3,1.71456393]
[1728243617815,6.53184,2449.6,2449.3,1.71456393]
[1728243618019,3.26591,2449.6,2449.3,1.71456393]
[1728243623445,3.26591,2449.6,2449.3,1.61456393]
[1728243627227,4.2922144,2449.6,2449.3,1.61456393]
[1728243628342,4.2922144,2449.6,2449.3,0.55]
[1728243628858,4.2922144,2449.6,2449.3,2.6894058]
[1728243629065,3.0,2449.7,2449.3,2.6894058]
[1728243631590,3.0,2449.7,2449.4,1.71232825]
[1728243631591,6.26572,2449.7,2449.4,1.71232825]
[1728243631881,6.26572,2449.7,2449.5,1.71232825]
[1728243636957,3.26583,2449.6,2449.5,1.71232825]
[1728243638199,4.09623,2449.6,2449.5,1.71232825]
[1728243638517,9.91927498,2449.6,2449.5,1.71232825]
[1728243639469,3.26661,2449.1,2448.7,0.8076]
[1728243639663,3.26663,2449.0,2448.7,0.8076]
[1728243639866,4.09701,2449.1,2448.7,0.8076]
[1728243640199,4.833341,2449.1,2448.7,0.8076]
[1728243642097,4.09701,2449.1,2448.7,0.8076]
[1728243645507,7.36362,2449.1,2448.7,0.8076]
[1728243645808,4.09701,2449.1,2448.7,0.8076]
[1728243649819,4.09701,2449.1,2449.0,1.71249079]
[1728243650174,4.09701,2449.1,2448.9,2.14061349]
[1728243651326,4.09701,2449.1,2448.7,3.37633619]
[1728243651327,4.09701,2449.1,2449.0,2.14061349]
[1728243651991,4.833339,2449.1,2449.0,2.14061349]
[1728243653225,4.833339,2449.1,2449.0,2.14162267]
[1728243654420,4.09701,2449.1,2449.0,2.14162267]
[1728243655802,4.09701,2449.1,2449.0,2.14203614]
[1728243655980,3.26661,2449.1,2449.0,2.14203614]
[1728243656180,6.26663,2449.0,2448.9,1.71367009]
[1728243656377,7.03577,2448.9,2448.8,2.14203614]
[1728243656613,7.03577,2448.9,2448.8,1.7137304]
[1728243661051,3.0,2448.9,2448.8,1.7137304]
[1728243662202,3.87045345,2449.0,2448.7,2.14122691]
[1728243662407,10.13718345,2449.0,2448.9,1.71286484]
[1728243662615,11.5278018,2449.0,2448.9,1.71286484]
[1728243665233,8.2610718,2449.0,2448.8,1.71286484]
[1728243665532,3.26677,2448.9,2448.8,1.71286484]
[1728243666331,4.09027,2448.9,2448.8,1.71286484]
[1728243666537,4.09027,2448.9,2448.7,1.71286484]
[1728243666831,3.2669,2448.8,2448.7,1.71286484]
[1728243669643,13.21065438,2448.8,2448.6,1.71286484]
[1728243669793,3.26717,2448.6,2448.5,1.71295319]
[1728243669994,3.26717,2448.6,2448.4,1.71295319]
[1728243669995,3.0,2448.6,2448.4,1.71295319]
[1728243670208,3.2673,2448.5,2448.4,1.71295319]
[1728243672232,3.2673,2448.5,2448.3,1.71295319]
[1728243673202,3.2673,2448.5,2448.2,0.7633]
[1728243674131,3.26749,2448.4,2448.2,0.7633]
[1728243676311,3.26766,2448.3,2448.0,2.50935319]
[1728243676512,3.26773,2448.2,2448.0,2.50935319]
[1728243677129,3.26773,2448.2,2448.0,1.71295319]
[1728243677332,3.26784,2448.1,2447.9,1.71295319]
[1728243677647,3.26784,2448.1,2447.8,4.0672619]
[1728243678056,3.26824,2447.8,2447.7,1.71295319]
[1728243678345,0.7641,2448.0,2447.5,0.39405892]
[1728243678346,3.26838,2447.7,2447.5,2.10701211]
[1728243678546,3.2685,2447.6,2447.5,2.10701211]
[1728243678709,6.53686,2447.7,2447.5,2.10701211]
[1728243678911,3.26838,2447.7,2447.5,0.39405892]
[1728243679316,4.0326,2447.6,2447.5,0.39405892]
[1728243683429,3.2685,2447.6,2447.5,0.39405892]
[1728243692787,6.2685,2447.6,2447.5,0.39405892]
[1728243692951,8.61090871,2447.6,2447.5,0.39405892]
[1728243694659,7.053,2447.6,2447.5,0.39405892]
[1728243694892,8.12906688,2447.6,2447.5,0.39405892]
[1728243700501,7.34456688,2447.6,2447.5,0.39405892]
[1728243700804,6.2685,2447.6,2447.5,0.39405892]
[1728243702407,7.0871,2447.6,2447.5,0.39405892]
[1728243704180,42.06761688,2447.6,2447.5,0.39405892]
[1728243705871,42.49476337,2447.6,2447.5,0.39405892]
[1728243707103,9.68366037,2447.6,2447.5,0.39405892]
[1728243707280,10.97886441,2447.6,2447.5,0.39405892]
[1728243707462,63.39368041,2447.6,2447.5,0.39405892]
[1728243707663,60.18896741,2447.6,2447.5,0.39405892]
[1728243712215,8.80945053,2447.6,2447.5,0.39405892]
[1728243712415,35.16769553,2447.6,2447.5,0.39405892]
[1728243712906,10.12195849,2447.6,2447.5,0.39405892]
[1728243713094,3.2685,2447.6,2447.5,0.39405892]
[1728243714210,6.2685,2447.6,2447.5,0.39405892]
[1728243722011,3.0,2447.6,2447.5,0.39405892]
[1728243722189,3.26838,2447.7,2447.5,0.39405892]
[1728243722579,6.53686,2447.7,2447.5,0.39405892]
[1728243722978,3.26838,2447.7,2447.5,0.39405892]
[1728243723379,5.95429,2447.9,2447.6,0.8108]
[1728243723380,3.26814,2447.9,2447.6,0.8108]
[1728243723614,3.26814,2447.9,2447.6,1.76742582]
[1728243724017,3.2685,2447.6,2447.5,0.39405892]
[1728243727817,6.2685,2447.6,2447.5,0.39405892]
[1728243736434,7.0517,2447.6,2447.5,0.39405892]
[1728243736635,11.402849,2447.6,2447.5,0.39405892]
[1728243737405,9.826134,2447.6,2447.5,0.39405892]
[1728243737608,6.2685,2447.6,2447.5,0.39405892]
[1728243740859,3.0,2447.6,2447.5,0.39405892]
[1728243741354,6.2685,2447.6,2447.5,0.39405892]
[1728243775520,3.0,2447.6,2447.5,2.92451211]
[1728243776081,3.0,2447.6,2447.5,1.21155892]
[1728243776397,6.2685,2447.6,2447.5,2.92888771]
[1728243776628,6.2685,2447.6,2447.5,2.92888952]
[1728243776796,6.2685,2447.6,2447.5,1.21155892]
[1728243777216,6.2685,2447.6,2447.5,2.92873437]
[1728243779830,3.26815,2447.9,2447.6,0.8175]
[1728243779988,3.26815,2447.9,2447.8,1.71679619]
[1728243781026,3.26815,2447.9,2447.8,0.8175]
[1728243781301,3.26815,2447.9,2447.8,2.53351981]
[1728243783549,3.26815,2447.9,2447.8,0.8175]
[1728243784956,3.26824,2447.8,2447.7,1.71601981]
[1728243786162,3.26824,2447.8,2447.6,1.71601981]
[1728243786750,3.26824,2447.8,2447.7,1.71601981]
[1728243787249,3.26824,2447.8,2447.6,1.71601981]
[1728243792872,0.60401449,2447.9,2447.6,1.71601981]
[1728243793171,0.60401449,2447.9,2447.6,2.22211124]
[1728243793330,3.87213449,2447.9,2447.6,2.22211124]
[1728243794670,0.60401449,2447.9,2447.6,2.22211124]
[1728243795257,3.87213449,2447.9,2447.6,1.71601981]
[1728243796475,3.26837,2447.7,2447.6,1.71601981]
[1728243796655,3.26837,2447.7,2447.5,2.91867873]
[1728243799973,3.26826,2447.8,2447.5,2.91867873]
[1728243801382,6.53662,2447.8,2447.5,2.91867873]
[1728243801702,3.26826,2447.8,2447.5,2.91867873]
[1728243802574,6.5366,2447.8,2447.5,2.91867873]
[1728243802999,3.26826,2447.8,2447.5,2.91867873]
[1728243804469,3.26846,2447.7,2447.5,2.91867873]
[1728243804900,3.26846,2447.7,2447.5,2.11007873]
[1728243806609,1.46867345,2447.7,2447.5,2.11007873]
[1728243806900,3.26826,2447.8,2447.5,2.11007873]
[1728243807201,0.60401449,2447.9,2447.6,2.53601981]
[1728243807401,0.60401449,2447.9,2447.6,4.09580948]
[1728243807708,3.0,2447.8,2447.6,4.09580948]
[1728243809511,6.26824,2447.8,2447.6,2.53601981]
[1728243810058,6.26824,2447.8,2447.6,0.82]
[1728243810261,0.60401449,2447.9,2447.7,1.71601981]
[1728243810499,0.60401449,2447.9,2447.8,1.71601981]
[1728243813323,0.60401449,2447.9,2447.8,4.60386393]
[1728243815224,0.60401449,2447.9,2447.8,5.15386393]
[1728243815528,0.60401449,2447.9,2447.8,3.01149337]
[1728243815701,0.60401449,2447.9,2447.8,3.93991446]
[1728243818877,0.60401449,2447.9,2447.8,7.12645076]
[1728243819133,0.60401449,2447.9,2447.8,9.77880102]
[1728243819319,0.60401449,2447.9,2447.8,9.69711199]
[1728243819495,0.60401449,2447.9,2447.8,7.12645076]
[1728243819832,0.60401449,2447.9,2447.8,9.77854936]
[1728243820033,0.60401449,2447.9,2447.8,7.12645076]
[1728243820190,0.60401449,2447.9,2447.8,9.77854935]
[1728243820390,0.60401449,2447.9,2447.8,9.69685979]
[1728243821939,0.60401449,2447.9,2447.8,7.12645076]
[1728243822138,0.60401449,2447.9,2447.8,7.20813763]
[1728243822292,0.60401449,2447.9,2447.8,3.93989763]
[1728243823545,0.60401449,2447.9,2447.8,7.20813763]
[1728243828021,0.60401449,2447.9,2447.8,9.77639055]
[1728243828315,0.60401449,2447.9,2447.8,9.69470368]
[1728243828940,0.60401449,2447.9,2447.8,9.69437887]
[1728243829856,0.60401449,2447.9,2447.8,9.69407077]
[1728243831566,0.60401449,2447.9,2447.8,7.12645076]
[1728243831772,0.60401449,2447.9,2447.8,7.20813811]
[1728243841543,0.60401449,2447.9,2447.8,9.77517113]
[1728243841744,0.60401449,2447.9,2447.8,9.69348378]
[1728243842777,0.60401449,2447.9,2447.8,7.12645076]
[1728243842982,0.60401449,2447.9,2447.8,7.20813803]
[1728243843475,0.60401449,2447.9,2447.8,9.77517105]
[1728243843656,0.60401449,2447.9,2447.8,9.69348378]
[1728243846766,0.60401449,2447.9,2447.8,7.12645076]
[1728243846938,0.60401449,2447.9,2447.8,7.20813821]
[1728243848475,0.60401449,2447.9,2447.8,9.77517123]
[1728243848776,0.60401449,2447.9,2447.8,9.69348378]
[1728243852794,0.60401449,2447.9,2447.8,7.12645076]
[1728243853095,0.60401449,2447.9,2447.8,7.20813831]
[1728243858504,0.60401449,2447.9,2447.8,4.82834864]
[1728243858814,0.60401449,2447.9,2447.8,6.38813831]
[1728243860787,0.60401449,2447.9,2447.8,7.16123831]
[1728243860991,0.60401449,2447.9,2447.8,10.1614925]
[1728243861219,0.60401449,2447.9,2447.8,10.08202624]
[1728243864651,1.36591449,2447.9,2447.8,3.00247548]
[1728243864821,1.36591449,2447.9,2447.8,2.57504381]
[1728243865146,0.7619,2447.8,2447.7,2.57504381]
[1728243865441,1.55210145,2447.8,2447.7,2.57504381]
[1728243865648,0.7619,2447.7,2447.6,2.57504381]
[1728243866313,0.7619,2447.7,2447.6,2.57442292]
[1728243868473,0.7619,2447.7,2447.5,4.52827151]
[1728243868977,3.26838,2447.7,2447.5,2.96848184]
[1728243869269,0.7619,2447.6,2447.5,2.96848184]
[1728243869561,0.7619,2447.6,2447.5,0.39405892]
[1728243871652,0.7619,2447.6,2447.5,2.53681952]
[1728243872348,0.7619,2447.6,2447.5,2.10834151]
[1728243872571,4.0304,2447.6,2447.5,2.10834151]
[1728243872739,5.13167145,2447.6,2447.5,2.10834151]
[1728243873255,1.86317145,2447.6,2447.5,0.39405892]
[1728243881756,5.13167145,2447.6,2447.5,0.39405892]
[1728243882105,1.86317145,2447.6,2447.5,0.39405892]
[1728243882282,0.7619,2447.6,2447.5,0.39405892]
[1728243882861,0.7619,2447.6,2447.5,0.24405892]
[1728243885091,3.7786,2447.8,2447.5,0.24405892]
[1728243885696,7.04685,2447.8,2447.5,0.24405892]
[1728243887191,3.26839,2447.7,2447.5,0.24405892]
[1728243889355,4.36030745,2447.7,2447.5,0.24405892]
[1728243899035,3.2685,2447.6,2447.5,0.24405892]
[1728243901993,4.021,2447.6,2447.5,0.24405892]
[1728243904808,3.2685,2447.6,2447.5,0.24405892]
[1728243905295,3.26839,2447.7,2447.5,0.24405892]
[1728243905492,3.2685,2447.6,2447.5,0.24405892]
[1728243906305,4.45433797,2447.6,2447.5,0.24405892]
[1728243909936,5.21603797,2447.6,2447.5,0.24405892]
[1728243913674,9.77582764,2447.6,2447.5,1.95834151]
[1728243913822,9.77582764,2447.6,2447.5,0.24405892]
[1728243923777,26.11774564,2447.6,2447.5,0.24405892]
[1728243924069,7.03087,2447.1,2446.9,1.71428259]
[1728243924268,6.26944,2446.9,2446.8,1.71428259]
[1728243924566,3.0,2446.8,2446.7,1.71428259]
[1728243925351,6.26957,2446.8,2446.7,1.71428259]
[1728243926060,6.26957,2446.8,2446.6,1.71428259]
[1728243926572,4.031,2447.0,2446.6,1.71428259]
[1728243926573,6.26945,2446.9,2446.6,1.71428259]
[1728243927534,6.26945,2446.9,2446.4,2.90838191]
[1728243927535,3.26958,2446.8,2446.5,1.71428259]
[1728243930368,6.53924,2446.8,2446.5,1.71428259]
[1728243930531,3.26958,2446.8,2446.5,1.71428259]
[1728243930931,6.53924,2446.8,2446.5,1.71428259]
[1728243932668,3.26984,2446.6,2446.4,2.47778259]
[1728243936477,3.26984,2446.6,2446.4,0.7635]
[1728243937948,3.26997,2446.5,2446.3,1.71428259]
[1728243941087,3.26984,2446.6,2446.3,1.71428259]
[1728243941771,6.53978,2446.6,2446.3,1.71428259]
[1728243942447,3.26984,2446.6,2446.3,1.71428259]
[1728243943486,6.53977,2446.6,2446.3,1.71428259]
[1728243944392,6.53977,2446.6,2446.2,2.63609419]
[1728243944556,3.26984,2446.6,2446.3,1.71428259]
[1728243945248,6.53977,2446.6,2446.3,1.71428259]
[1728243946072,3.26984,2446.6,2446.3,1.71428259]
[1728243946278,3.26984,2446.6,2446.3,2.52700605]
[1728243946732,3.26962,2446.8,2446.4,0.7847]
[1728243946894,3.0,2446.9,2446.7,0.7847]
[1728243947399,3.0,2447.1,2446.7,0.7847]
[1728243947898,6.26919,2447.1,2446.7,0.7847]
[1728243948254,3.0,2447.1,2446.7,0.7847]
[1728243948453,3.0,2446.9,2446.7,0.7847]
[1728243949096,3.7667,2446.9,2446.5,2.49898259]
[1728243949298,3.7667,2446.9,2446.5,0.7847]
[1728243949590,3.2696,2446.8,2446.5,0.7847]
[1728243952913,3.7667,2446.9,2446.5,2.49898259]
[1728243953229,3.0,2447.0,2446.6,2.42623256]
[1728243953377,6.26926,2447.1,2446.7,0.55]
[1728243954690,6.2692,2447.1,2446.7,0.55]
[1728243955283,6.2692,2447.1,2446.7,2.26428259]
[1728243955619,7.29749,2447.4,2446.8,2.36918967]
[1728243955820,3.26882,2447.4,2447.0,1.55978967]
[1728243956395,6.53771,2447.4,2447.0,1.55978967]
[1728243957220,3.26893,2447.3,2446.9,2.52368259]
[1728243957423,3.26893,2447.3,2446.9,0.8094]
[1728243957611,3.26893,2447.3,2446.9,2.52368259]
[1728243958715,3.26882,2447.4,2447.0,2.36918967]
[1728243960312,7.63254446,2447.6,2447.0,2.36918967]
[1728243960313,10.14134446,2447.6,2447.0,1.55978967]
[1728243960512,3.26866,2447.5,2447.1,0.8094]
[1728243963114,3.26878,2447.4,2447.1,0.8094]
[1728243964434,6.87274446,2447.6,2447.1,1.06176826]
[1728243964634,6.87274446,2447.6,2447.2,0.8195]
[1728243966143,7.14134446,2447.6,2447.2,0.8195]
[1728243967819,3.87274446,2447.6,2447.2,0.8195]
[1728243968160,3.87274446,2447.6,2447.5,0.8195]
[1728243968161,0.60420446,2447.6,2447.5,0.8195]
[1728243974863,0.60420446,2447.6,2447.5,4.70795897]
[1728243975029,0.60420446,2447.6,2447.5,1.43931897]
[1728243975223,0.60420446,2447.6,2447.5,0.8195]
[1728243976568,3.26866,2447.5,2447.1,1.71428259]
[1728243976861,3.26866,2447.5,2447.0,2.53378259]
[1728243977530,4.64291446,2447.6,2447.1,0.8195]
[1728243977736,5.10720591,2447.6,2447.1,0.8195]
[1728243982397,4.64291446,2447.6,2447.1,0.8195]
[1728243986860,3.87281446,2447.6,2447.0,1.71428259]
[1728243987046,0.7749,2447.5,2447.0,1.71428259]
[1728243990617,0.7749,2447.5,2447.1,1.71428259]
[1728243991291,0.7749,2447.5,2447.0,1.71428259]
[1728243992108,0.7749,2447.5,2447.0,4.98357259]
[1728243992415,0.7749,2447.5,2447.1,1.71428259]
[1728243993822,0.7749,2447.5,2447.1,2.46478259]
[1728243993990,0.7749,2447.5,2447.1,5.73394259]
[1728243994198,0.7749,2447.5,2447.1,9.00303259]
[1728243994427,0.60420446,2447.6,2447.4,4.82854967]
[1728243994607,0.60420446,2447.6,2447.5,3.26864]
[1728243996621,0.60420446,2447.6,2447.4,7.35704226]
[1728243997083,0.60420446,2447.6,2447.5,3.26864]
[1728243997282,0.60420446,2447.6,2447.5,4.98292259]
[1728243997483,0.60420446,2447.6,2447.5,6.31469018]
[1728243998806,0.60420446,2447.6,2447.5,3.04605018]
[1728243999997,0.60420446,2447.6,2447.5,6.31469018]
[1728244000800,0.60420446,2447.6,2447.5,4.60040759]
[1728244001723,0.60420446,2447.6,2447.5,3.4746284]
[1728244002022,0.60420446,2447.6,2447.5,2.14286081]
[1728244002537,0.60420446,2447.6,2447.4,7.78562048]
[1728244002900,0.60420446,2447.6,2447.4,7.78577621]
[1728244006529,0.60420446,2447.6,2447.5,1.71442499]
[1728244011539,1.41520446,2447.6,2447.5,1.71442499]
[1728244013903,0.60420446,2447.6,2447.5,1.71442499]
[1728244016510,0.60420446,2447.6,2447.5,4.98306499]
[1728244016706,0.60420446,2447.6,2447.5,7.29005107]
[1728244017039,0.60420446,2447.6,2447.5,8.06385107]
[1728244017803,0.60420446,2447.6,2447.5,8.06352175]
[1728244020634,0.60420446,2447.6,2447.5,5.92033416]
[1728244020853,0.60420446,2447.6,2447.5,8.57385877]
[1728244021032,0.60420446,2447.6,2447.5,11.49215926]
[1728244021365,0.60420446,2447.6,2447.5,11.49112351]
[1728244021565,0.60420446,2447.6,2447.5,8.92033416]
[1728244025895,0.60420446,2447.6,2447.5,11.48898176]
[1728244026097,0.60420446,2447.6,2447.5,11.48896294]
[1728244027083,0.60420446,2447.6,2447.5,8.92033416]
[1728244027421,0.60420446,2447.6,2447.5,9.49842097]
[1728244029104,0.60420446,2447.6,2447.5,6.93012383]
[1728244029317,0.60420446,2447.6,2447.4,5.83697714]
[1728244029513,0.60420446,2447.6,2447.5,5.95876488]
[1728244031026,0.60420446,2447.6,2447.5,5.95884849]
[1728244033369,0.60420446,2447.6,2447.5,3.81864]
[1728244033608,0.60420446,2447.6,2447.5,5.95900365]
[1728244033908,0.60420446,2447.6,2447.5,5.23555235]
[1728244034113,0.60420446,2447.6,2447.5,7.37604142]
[1728244034316,0.60420446,2447.6,2447.5,5.23555235]
[1728244035282,0.60420446,2447.6,2447.5,5.31725115]
[1728244035518,0.60420446,2447.6,2447.5,6.04895235]
[1728244042005,0.60420446,2447.6,2447.5,8.61956918]
[1728244042206,0.60420446,2447.6,2447.5,6.04895235]
[1728244043223,0.60420446,2447.6,2447.5,8.61956918]
[1728244045296,0.818,2448.1,2447.5,8.61956918]
[1728244045514,1.226557,2448.1,2447.9,1.713843]
[1728244047214,0.818,2448.1,2447.9,1.713843]
[1728244047841,0.818,2448.1,2447.8,1.713843]
[1728244048512,0.818,2448.1,2447.8,1.79553845]
[1728244049131,0.818,2448.1,2447.9,1.713843]
[1728244049937,0.818,2448.1,2447.8,1.713843]
[1728244051020,0.818,2448.1,2447.9,1.713843]
[1728244051223,0.818,2448.1,2447.8,1.713843]
[1728244051535,0.818,2448.1,2447.9,1.713843]
[1728244051734,0.818,2448.1,2447.8,1.713843]
[1728244051971,0.818,2448.1,2447.9,1.713843]
[1728244052935,4.494415,2448.1,2447.9,1.713843]
[1728244053104,0.7808,2448.0,2447.8,1.713843]
[1728244057458,0.7808,2448.0,2447.9,1.713843]
[1728244058273,4.0489,2447.9,2447.8,1.713843]
[1728244058432,4.780587,2447.9,2447.8,1.713843]
[1728244059244,1.512487,2447.9,2447.8,1.713843]
[1728244063782,0.7808,2447.9,2447.8,2.14230375]
[1728244064487,0.7808,2447.9,2447.7,0.08170645]
[1728244064692,0.7808,2447.9,2447.8,2.14500922]
[1728244065613,0.7808,2447.9,2447.7,0.55]
[1728244066393,0.7808,2447.9,2447.8,2.14524543]
[1728244066970,0.7808,2447.9,2447.7,0.55]
[1728244067499,0.7808,2447.9,2447.8,2.14529421]
[1728244067807,0.7808,2447.9,2447.7,0.55]
[1728244071292,0.7808,2447.9,2447.7,3.12061683]
[1728244071612,0.7808,2447.9,2447.7,0.55]
[1728244072013,0.7653,2448.1,2447.7,0.63170099]
[1728244072204,0.7653,2448.1,2448.0,1.71654876]
[1728244072510,0.7653,2448.1,2447.9,2.14568595]
[1728244072717,0.7653,2448.1,2448.0,1.7166435]
[1728244072928,0.7653,2448.1,2447.9,2.14568595]
[1728244073128,4.03314,2448.1,2447.9,2.14568595]
[1728244073417,4.03314,2448.1,2448.0,2.14568595]
[1728244073722,4.03314,2448.1,2448.0,1.71678897]
[1728244074221,4.03314,2448.1,2448.0,1.71677198]
[1728244074379,0.7653,2448.1,2447.9,2.14568595]
[1728244074817,0.7653,2448.1,2448.0,1.71686908]
[1728244075311,0.7653,2448.1,2448.0,2.14568595]
[1728244084651,0.7653,2448.1,2447.7,0.55]
[1728244084814,0.7653,2448.1,2448.0,2.14563538]
[1728244089775,0.7976,2448.3,2448.0,2.14546323]
[1728244089994,4.0653,2448.3,2448.1,1.71634148]
[1728244090282,5.098581,2448.3,2448.2,1.71634148]
[1728244091176,5.098581,2448.3,2448.1,1.71634148]
[1728244091748,3.2677,2448.2,2448.1,1.71634148]
[1728244092051,3.2677,2448.2,2448.1,1.71623786]
[1728244092369,5.098451,2448.3,2448.1,1.71623404]
[1728244092572,5.098451,2448.3,2448.2,1.71623404]
[1728244095783,8.098451,2448.3,2448.1,1.71623404]
[1728244095950,1.1365891,2448.2,2448.1,1.71623404]
[1728244097761,7.06517,2448.3,2448.1,1.71623404]
[1728244100190,3.2677,2448.2,2448.1,1.71623404]
[1728244101687,3.2677,2448.2,2448.1,2.14546323]
[1728244102162,3.2677,2448.2,2448.0,2.14546323]
[1728244103572,3.2677,2448.2,2448.1,2.14546323]
[1728244104259,3.2677,2448.2,2448.0,2.14546323]
[1728244104623,3.2677,2448.2,2448.1,1.71569047]
[1728244104980,3.2677,2448.2,2448.0,2.14546323]
[1728244105193,3.2677,2448.2,2448.1,1.71571987]
[1728244105485,3.2677,2448.2,2448.0,2.14546323]
[1728244105860,3.2677,2448.2,2448.1,1.71580304]
[1728244106758,3.2677,2448.2,2448.0,2.14546323]
[1728244106958,3.2677,2448.2,2448.1,1.71585959]
[1728244107605,3.7976,2448.3,2448.1,1.71585959]
[1728244107807,7.06526,2448.3,2448.2,1.71594595]
[1728244107990,7.771764,2448.3,2448.1,1.71594595]
[1728244108187,7.06526,2448.3,2448.2,1.71594595]
[1728244108394,7.06526,2448.3,2448.1,1.71594595]
[1728244109106,7.06526,2448.3,2448.2,1.71594595]
[1728244109912,7.06526,2448.3,2448.1,1.71594595]
[1728244110572,7.06526,2448.3,2448.2,1.71594595]
[1728244110774,7.06526,2448.3,2448.1,1.71594595]
[1728244111382,7.06526,2448.3,2448.2,1.71594595]
[1728244121026,8.09853,2448.3,2448.2,1.71594595]
[1728244122280,8.09853,2448.3,2448.1,1.71594595]
[1728244122281,3.2677,2448.2,2448.1,1.71594595]
[1728244122582,8.64628967,2448.2,2448.1,1.71594595]
[1728244128991,3.26784,2448.1,2448.0,1.71594595]
[1728244131903,9.25025446,2448.2,2448.0,2.14590721]
[1728244131904,7.69046479,2448.2,2448.0,2.14590721]
[1728244132237,7.69046479,2448.2,2448.1,1.71653399]
[1728244133027,0.60396479,2448.2,2448.1,2.50973399]
[1728244133231,0.60396479,2448.2,2448.1,0.7932]
[1728244133597,0.59902959,2448.2,2448.1,2.93910721]
[1728244134739,0.59902959,2448.2,2448.1,2.64690039]
[1728244134922,0.59902959,2448.2,2448.1,3.66219937]
[1728244137430,0.59902959,2448.2,2448.0,2.57508865]
[1728244137631,3.26784,2448.1,2448.0,2.57508865]
[1728244138000,3.26784,2448.1,2447.9,2.57508865]
[1728244138746,3.26784,2448.1,2447.8,2.57508865]
[1728244139750,3.26799,2448.0,2447.8,2.57508865]
[1728244139953,3.26799,2448.0,2447.8,2.57349988]
[1728244140144,3.26799,2448.0,2447.7,3.35139988]
[1728244140459,4.07429,2448.0,2447.9,2.14461863]
[1728244143624,4.07429,2448.0,2447.9,2.14455711]
[1728244144522,5.02438493,2448.0,2447.9,2.14455711]
[1728244144855,3.2681,2447.9,2447.8,2.14455711]
[1728244147842,3.2681,2447.9,2447.8,2.14454976]
[1728244148041,3.2681,2447.9,2447.6,2.57346854]
[1728244148440,4.07429,2448.0,2447.8,2.14455536]
[1728244148635,4.07429,2448.0,2447.9,2.14455536]
[1728244148858,0.8063,2448.0,2447.8,2.14455536]
[1728244149129,3.2681,2447.9,2447.8,2.14455536]
[1728244149833,9.53209264,2447.9,2447.8,1.71567296]
[1728244150037,0.814,2447.7,2447.5,1.71567296]
[1728244150261,3.814,2447.5,2447.4,2.14455536]
[1728244150576,8.64242967,2447.5,2447.4,1.71589491]
[1728244150869,9.65067967,2447.5,2447.4,1.71589491]
[1728244151670,9.65067967,2447.5,2447.3,1.71589491]
[1728244151671,6.26877,2447.4,2447.3,1.71589491]
[1728244152034,6.2689,2447.3,2447.2,1.71589491]
[1728244153274,6.2689,2447.3,2447.1,1.71589491]
[1728244153494,6.2689,2447.3,2447.2,1.71589491]
[1728244153633,6.2689,2447.3,2447.1,1.71589491]
[1728244153833,4.08304,2447.2,2447.1,1.71589491]
[1728244154036,7.08304,2447.2,2447.1,1.71589491]
[1728244154268,6.26917,2447.1,2446.9,1.71589491]
[1728244154469,6.26917,2447.1,2446.8,1.71589491]
[1728244154470,6.26944,2446.9,2446.8,1.71589491]
[1728244154684,6.26944,2446.9,2446.7,1.71589491]
[1728244155874,3.26957,2446.8,2446.6,1.71589491]
[1728244156036,3.0,2446.9,2446.6,1.71589491]
[1728244157424,3.0,2446.9,2446.6,4.07091205]
[1728244158299,3.0,2446.9,2446.6,2.35501714]
[1728244160940,3.2693,2447.0,2446.6,2.35501714]
[1728244161142,6.53871,2447.0,2446.6,2.35501714]
[1728244161918,3.2693,2447.0,2446.8,1.55978967]
[1728244162217,3.0,2447.1,2446.9,0.7662]
[1728244162945,3.26907,2447.2,2446.9,0.7662]
[1728244163255,3.26907,2447.2,2447.0,1.79238864]
[1728244163550,3.26884,2447.4,2447.0,1.79238864]
[1728244163724,3.26884,2447.4,2447.2,1.55978967]
[1728244163926,3.26884,2447.4,2447.2,1.81564853]
[1728244165507,3.26884,2447.4,2447.2,1.55978967]
[1728244165717,6.53773,2447.4,2447.1,0.7662]
[1728244166046,3.26892,2447.3,2447.0,1.79238864]
[1728244167346,3.26892,2447.3,2446.7,2.97985612]
[1728244167347,3.2692,2447.1,2446.7,2.97985612]
[1728244167547,3.2692,2447.1,2446.7,4.53964579]
[1728244167760,3.26905,2447.2,2446.7,4.53964579]
[1728244167761,3.26905,2447.2,2446.7,2.82375088]
[1728244168228,6.53822,2447.2,2446.7,4.53964579]
[1728244168531,3.26905,2447.2,2446.9,1.55978967]
[1728244168853,6.53819,2447.2,2446.9,1.55978967]
[1728244169954,3.26927,2447.1,2446.8,1.55978967]
[1728244170161,3.26927,2447.1,2446.8,2.01133414]
[1728244170359,3.2694,2447.0,2446.8,0.45154447]
[1728244170559,3.2694,2447.0,2446.7,0.7745]
[1728244170857,3.2694,2447.0,2446.6,0.55]
[1728244174019,0.7739,2447.3,2446.5,4.05018458]
[1728244174224,0.7539,2446.9,2446.5,2.33428967]
[1728244175054,6.53936,2446.8,2446.5,2.33428967]
[1728244175248,3.26966,2446.8,2446.5,0.7745]
[1728244175550,3.26966,2446.8,2446.4,3.27568458]
[1728244175763,3.26966,2446.8,2446.4,1.55978967]
[1728244177080,3.26984,2446.6,2446.4,1.55978967]
[1728244177400,3.26984,2446.6,2446.4,2.1891916]
[1728244177561,3.26984,2446.6,2446.4,1.55978967]
[1728244187398,3.26966,2446.8,2446.4,1.55978967]
[1728244187898,6.53933,2446.8,2446.4,3.27568458]
[1728244188460,3.26966,2446.8,2446.4,3.27568458]
[1728244188996,6.53936,2446.8,2446.6,1.55978967]
[1728244189296,3.26936,2447.0,2446.6,2.31128967]
[1728244189455,6.53879,2447.0,2446.6,2.31128967]
[1728244190295,3.26945,2446.9,2446.6,2.31128967]
[1728244190496,3.26945,2446.9,2446.6,4.02718458]
[1728244193585,3.26945,2446.9,2446.7,1.71589491]
[1728244195609,3.26945,2446.9,2446.8,1.71589491]
[1728244198483,3.26936,2447.0,2446.7,2.14371717]
[1728244198692,3.26957,2446.8,2446.7,2.14371717]
[1728244200620,3.26957,2446.8,2446.6,2.31128967]
[1728244201103,3.26957,2446.8,2446.7,2.14445664]